lending/lending_fUSD_20260110
["ID","MTS","AMOUNT","RATE_DAILY","PERIOD"]
[401268234,1768086632345,-500.0,0.00014561,2]
[401268235,1768086632356,-500.0,0.00014561,2]
[401268236,1768086632367,-500.0,0.00014561,2]
[401268237,1768086632377,-386.45682453,0.00014561,2]
[401268238,1768086632387,-648.66,0.00014561,2]
[401268239,1768086632397,-648.66,0.00014561,2]
[401268240,1768086632408,-648.66,0.00014561,2]
[401268241,1768086632417,-648.66,0.00014561,2]
[401268242,1768086632427,-17355.26409573,0.00014561,2]
[401268243,1768086632437,-500.0,0.00014561,2]
[401268244,1768086632452,-500.0,0.00014561,2]
[401268245,1768086632462,-500.0,0.00014561,2]
[401268246,1768086632473,-172.20960609,0.00014561,2]
[401268247,1768086632482,-731.32431392,0.00014561,2]
[401268248,1768086632492,-500.0,0.00014561,2]
[401268249,1768086632504,-22419.16609004,0.00014661,2]
[401268250,1768086632514,-500.0,0.00014761,2]
[401268251,1768086632526,-516.50114519,0.00014761,2]
[401268252,1768086632536,-500.0,0.00014761,2]
[401268253,1768086632547,-500.0,0.00014761,2]
[401268254,1768086632558,-500.0,0.00014761,2]
[401268255,1768086632567,-500.0,0.00014761,2]
[401268256,1768086632577,-500.0,0.00014761,2]
[401268257,1768086632587,-500.0,0.00014761,2]
[401268258,1768086632597,-640.29,0.00014761,2]
[401268259,1768086632609,-640.29,0.00014761,2]
[401268260,1768086632621,-640.29,0.00014761,2]
[401268261,1768086632631,-500.0,0.00014761,2]
[401268262,1768086632642,-500.0,0.00014761,2]
[401268263,1768086632653,-478.33803571,0.00014761,2]
[401268264,1768086632663,-500.0,0.00014835,2]
[401268265,1768086632673,-3148.91,0.00015099,2]
[401268266,1768086632683,-500.0,0.00015099,2]
[401268267,1768086632694,-500.0,0.00015172,2]
[401268268,1768086632704,-640.29,0.00015172,2]
[401268269,1768086632714,-500.0,0.00015173,2]
[401268270,1768086632724,-500.0,0.00015173,2]
[401268271,1768086632735,-500.0,0.00015173,2]
[401268272,1768086632744,-500.0,0.00015173,2]
[401268273,1768086632754,-165.71915277,0.00015173,2]
[401268274,1768086632764,-500.0,0.00015173,2]
[401268275,1768086632773,-500.0,0.00015173,2]
[401268276,1768086632783,-500.0,0.00015173,2]
[401268277,1768086632793,-500.0,0.00015173,2]
[401268278,1768086632804,-500.0,0.00015173,2]
[401268279,1768086633188,-591.63836331,0.00015173,2]
[401268280,1768086633199,-500.0,0.00015173,2]
[401268281,1768086633209,-503.21710881,0.00015173,2]
[401268282,1768086633219,-600.1564652,0.00015173,2]
[401268283,1768086633228,-500.0,0.00015173,2]
[401268284,1768086633238,-500.0,0.00015173,2]
[401268285,1768086633248,-503.22149194,0.00015173,2]
[401268286,1768086633258,-500.0,0.00015173,2]
[401268287,1768086633268,-316.44394678,0.00015173,2]
[401268288,1768086633280,-165.89041365,0.00015173,2]
[401268289,1768086633290,-500.0,0.00015173,2]
[401268290,1768086633299,-500.0,0.00015173,2]
[401268291,1768086633308,-500.0,0.00015173,2]
[401268292,1768086633318,-500.0,0.00015173,2]
[401268293,1768086633327,-500.0,0.00015173,2]
[401268294,1768086633336,-500.0,0.00015173,2]
[401268295,1768086633345,-500.76955814,0.00015173,2]
[401268296,1768086633355,-500.0,0.00015173,2]
[401268297,1768086633364,-500.0,0.00015173,2]
[401268298,1768086633373,-500.0,0.00015173,2]
[401268299,1768086633383,-500.0,0.00015173,2]
[401268300,1768086633392,-3670.97044827,0.00015255,2]
[401268301,1768086633403,-151.0,0.00015493,2]
[401268302,1768086633414,-151.0,0.00015493,2]
[401268303,1768086633423,-255.0,0.00015678,2]
[401268304,1768086633434,-3148.91,0.00015685,2]
[401268305,1768086633443,-1000.0,0.00015721,2]
[401268306,1768086633453,-1006.30341667,0.00015721,2]
[401268307,1768086633463,-1000.0,0.00015721,2]
[401268308,1768086633472,-1000.0,0.00015721,2]
[401268309,1768086633482,-1000.0,0.00015721,2]
[401268310,1768086633491,-1000.0,0.00015721,2]
[401268311,1768086633500,-1000.0,0.00015721,2]
[401268312,1768086633510,-1000.0,0.00015721,2]
[401268313,1768086633519,-300.18716845,0.00015721,2]
[401268314,1768086633528,-1000.0,0.00015721,2]
[401268315,1768086633539,-398.90451449,0.00015721,2]
[401268316,1768086633549,-501.54454633,0.00015721,2]
[401268317,1768086633558,-727.61155844,0.00015721,2]
[401268318,1768086633567,-456.82925686,0.00015721,2]
[401268319,1768086633578,-1000.0,0.00015721,2]
[401268320,1768086633588,-1000.0,0.00015721,2]
[401268321,1768086633598,-529.41435114,0.00015721,2]
[401268322,1768086633608,-1000.0,0.00015721,2]
[401268323,1768086633618,-1680.0,0.00015796,2]
[401268324,1768086633628,-250.0,0.00015796,2]
[401268325,1768086633637,-300.0,0.00015796,2]
[401268326,1768086633647,-195.0,0.00015796,2]
[401268327,1768086633658,-344.98670239,0.00015796,2]
[401268328,1768086633668,-168.0044133,0.0001581,2]
[401268329,1768086633678,-300.0,0.00015905,2]
[401268330,1768086633688,-250.0,0.00015905,2]
[401268331,1768086633698,-300.0,0.00015905,2]
[401268332,1768086633708,-195.0,0.00015905,2]
[401268333,1768086633717,-252.34656851,0.00015905,2]
[401268334,1768086633727,-300.0,0.00015905,2]
[401268335,1768086633737,-195.0,0.00015905,2]
[401268336,1768086633746,-195.0,0.00015905,2]
[401268337,1768086633755,-214.81,0.00015918,2]
[401268338,1768086633765,-17355.26409565,0.00015957,2]
[401268339,1768086633775,-22419.16608996,0.00016065,2]
[401268340,1768086633784,-501.59416154,0.000161,2]
[401268341,1768086633795,-1000.0,0.00016111,2]
[401268342,1768086633804,-7755.69,0.00016116,2]
[401268343,1768086633813,-661.23,0.00016244,2]
[401268344,1768086633824,-1500.0,0.00016268,2]
[401268345,1768086633834,-1500.0,0.00016268,2]
[401268346,1768086633845,-1500.0,0.00016268,2]
[401268347,1768086633855,-1500.0,0.00016268,2]
[401268348,1768086633865,-1500.0,0.00016268,2]
[401268349,1768086633875,-1500.0,0.00016268,2]
[401268350,1768086633884,-1500.0,0.00016268,2]
[401268351,1768086633894,-1500.0,0.00016268,2]
[401268352,1768086633904,-1500.0,0.00016268,2]
[401268353,1768086633914,-3148.91,0.0001627,2]
[401268354,1768086633923,-1536.0477178,0.00016428,2]
[401268355,1768086633933,-500.0,0.00016437,2]
[401268356,1768086633942,-500.0,0.00016437,2]
[401268357,1768086633951,-500.0,0.00016437,2]
[401268358,1768086633962,-500.0,0.00016437,2]
[401268359,1768086633972,-500.0,0.00016437,2]
[401268360,1768086633982,-500.0,0.00016437,2]
[401268361,1768086633994,-500.0,0.00016437,2]
[401268362,1768086634003,-500.0,0.00016437,2]
[401268363,1768086634013,-500.0,0.00016437,2]
[401268364,1768086634023,-500.0,0.00016437,2]
[401268365,1768086634033,-500.0,0.00016437,2]
[401268366,1768086634044,-500.0,0.00016437,2]
[401268367,1768086634055,-500.0,0.00016437,2]
[401268368,1768086634064,-500.0,0.00016437,2]
[401268369,1768086634074,-500.0,0.00016437,2]
[401268370,1768086634084,-500.0,0.00016437,2]
[401268371,1768086634093,-500.0,0.00016437,2]
[401268372,1768086634104,-526.16699699,0.00016437,2]
[401268373,1768086634114,-500.0,0.00016437,2]
[401268374,1768086634124,-500.0,0.00016437,2]
[401268375,1768086634134,-500.0,0.00016437,2]
[401268376,1768086634144,-500.0,0.00016437,2]
[401268377,1768086634155,-500.0,0.00016437,2]
[401268378,1768086634164,-500.0,0.00016437,2]
[401268379,1768086634173,-500.0,0.00016437,2]
[401268380,1768086634182,-500.0,0.00016437,2]
[401268381,1768086634192,-500.0,0.00016437,2]
[401268382,1768086634201,-500.0,0.00016437,2]
[401268383,1768086634211,-500.0,0.00016437,2]
[401268384,1768086634220,-500.0,0.00016437,2]
[401268385,1768086634230,-500.0,0.00016437,2]
[401268386,1768086634239,-500.0,0.00016437,2]
[401268387,1768086634248,-500.0,0.00016437,2]
[401268388,1768086634258,-500.0,0.00016437,2]
[401268389,1768086634268,-500.0,0.00016437,2]
[401268390,1768086634278,-500.0,0.00016437,2]
[401268391,1768086634289,-635.50297286,0.00016437,2]
[401268392,1768086634299,-500.0,0.00016437,2]
[401268393,1768086634308,-500.0,0.00016437,2]
[401268394,1768086634319,-500.0,0.00016437,2]
[401268395,1768086634328,-500.0,0.00016437,2]
[401268396,1768086634337,-500.0,0.00016437,2]
[401268397,1768086634347,-500.0,0.00016437,2]
[401268398,1768086634359,-500.0,0.00016437,2]
[401268399,1768086634368,-500.0,0.00016437,2]
[401268400,1768086634377,-500.0,0.00016437,2]
[401268401,1768086634388,-500.0,0.00016437,2]
[401268402,1768086634397,-500.0,0.00016437,2]
[401268403,1768086634407,-500.0,0.00016437,2]
[401268404,1768086634416,-500.0,0.00016437,2]
[401268405,1768086634426,-500.0,0.00016437,2]
[401268406,1768086634435,-500.0,0.00016437,2]
[401268407,1768086634445,-500.0,0.00016437,2]
[401268408,1768086634455,-649.16,0.00016437,2]
[401268409,1768086634464,-500.0,0.00016437,2]
[401268410,1768086634474,-500.0,0.00016437,2]
[401268411,1768086634483,-500.0,0.00016437,2]
[401268412,1768086634493,-500.0,0.00016437,2]
[401268413,1768086634503,-500.0,0.00016437,2]
[401268414,1768086634513,-500.0,0.00016437,2]
[401268415,1768086634524,-500.0,0.00016437,2]
[401268416,1768086634533,-500.0,0.00016437,2]
[401268417,1768086634544,-500.0,0.00016437,2]
[401268418,1768086634554,-500.0,0.00016437,2]
[401268419,1768086634563,-500.0,0.00016437,2]
[401268420,1768086634573,-500.0,0.00016437,2]
[401268421,1768086634583,-500.0,0.00016437,2]
[401268422,1768086634592,-500.0,0.00016437,2]
[401268423,1768086634602,-500.0,0.00016437,2]
[401268424,1768086634612,-500.0,0.00016437,2]
[401268425,1768086634621,-500.0,0.00016437,2]
[401268426,1768086634631,-213.55029729,0.00016437,2]
[401268427,1768086634640,-1249.53,0.00016437,2]
[401268428,1768086634649,-500.0,0.00016437,2]
[401268429,1768086634659,-648.66,0.00016437,2]
[401268430,1768086634668,-500.0,0.00016437,2]
[401268431,1768086634678,-500.0,0.00016437,2]
[401268432,1768086634688,-500.0,0.00016437,2]
[401268433,1768086634697,-500.0,0.00016437,2]
[401268434,1768086634706,-456.46564164,0.00016437,2]
[401268435,1768086634716,-500.0,0.00016437,2]
[401268436,1768086634726,-500.0,0.00016437,2]
[401268437,1768086634735,-500.0,0.00016437,2]
[401268438,1768086634745,-500.0,0.00016437,2]
[401268439,1768086634754,-500.0,0.00016437,2]
[401268440,1768086634764,-500.0,0.00016437,2]
[401268441,1768086634774,-500.0,0.00016437,2]
[401268442,1768086634783,-500.0,0.00016437,2]
[401268443,1768086634794,-500.0,0.00016438,2]
[401268444,1768086634805,-500.0,0.00016438,2]
[401268445,1768086634815,-500.0,0.00016438,2]
[401268446,1768086634825,-500.0,0.00016438,2]
[401268447,1768086634835,-500.0,0.00016438,2]
[401268448,1768086634845,-500.0,0.00016438,2]
[401268449,1768086634855,-500.0,0.00016438,2]
[401268450,1768086634865,-500.0,0.00016438,2]
[401268451,1768086634875,-500.0,0.00016438,2]
[401268452,1768086634885,-500.0,0.00016438,2]
[401268453,1768086634895,-500.0,0.00016438,2]
[401268454,1768086634904,-500.0,0.00016438,2]
[401268455,1768086634914,-500.0,0.00016438,2]
[401268456,1768086634923,-500.0,0.00016438,2]
[401268457,1768086634933,-500.0,0.00016438,2]
[401268458,1768086634942,-500.0,0.00016438,2]
[401268459,1768086634952,-500.0,0.00016438,2]
[401268460,1768086634961,-500.0,0.00016438,2]
[401268461,1768086634971,-1929.70474864,0.00016438,2]
[401268462,1768086634980,-1929.70474864,0.00016438,2]
[401268463,1768086634989,-1929.70474864,0.00016438,2]
[401268464,1768086634999,-1929.70474864,0.00016438,2]
[401268465,1768086635007,-1929.70474864,0.00016438,2]
[401268466,1768086635017,-1929.70474864,0.00016438,2]
[401268467,1768086635026,-1929.70474864,0.00016438,2]
[401268468,1768086635035,-1929.70474864,0.00016438,2]
[401268469,1768086635046,-1929.70474864,0.00016438,2]
[401268470,1768086635055,-1929.70474864,0.00016438,2]
[401268471,1768086635065,-1929.70474864,0.00016438,2]
[401268472,1768086635074,-1929.70474864,0.00016438,2]
[401268473,1768086635084,-1929.70474864,0.00016438,2]
[401268474,1768086635093,-1929.70474864,0.00016438,2]
[401268475,1768086635102,-1929.70474864,0.00016438,2]
[401268476,1768086635112,-1929.70474864,0.00016438,2]
[401268477,1768086635122,-1929.70474864,0.00016438,2]
[401268478,1768086635132,-1929.70474864,0.00016438,2]
[401268479,1768086635141,-1929.70474864,0.00016438,2]
[401268480,1768086635151,-1929.70474864,0.00016438,2]
[401268481,1768086635160,-1929.70474864,0.00016438,2]
[401268482,1768086635169,-1929.70474864,0.00016438,2]
[401268483,1768086635178,-1929.70474864,0.00016438,2]
[401268484,1768086635187,-1929.70474864,0.00016438,2]
[401268485,1768086635198,-1929.70474864,0.00016438,2]
[401268486,1768086635207,-1929.70474864,0.00016438,2]
[401268487,1768086635217,-1929.70474864,0.00016438,2]
[401268488,1768086635227,-1929.70474864,0.00016438,2]
[401268489,1768086635236,-1929.70474864,0.00016438,2]
[401268490,1768086635246,-1929.70474864,0.00016438,2]
[401268491,1768086635256,-1929.70474864,0.00016438,2]
[401268492,1768086635265,-1929.70474864,0.00016438,2]
[401268493,1768086635275,-1929.70474864,0.00016438,2]
[401268494,1768086635288,-1929.70474864,0.00016438,2]
[401268495,1768086635299,-1929.70474864,0.00016438,2]
[401268496,1768086635308,-1929.70474864,0.00016438,2]
[401268497,1768086635318,-1929.70474864,0.00016438,2]
[401268498,1768086635327,-1929.70474864,0.00016438,2]
[401268499,1768086635337,-1929.70474864,0.00016438,2]
[401268500,1768086635347,-1929.70474864,0.00016438,2]
[401268501,1768086635356,-1929.70474864,0.00016438,2]
[401268502,1768086635365,-1929.70474864,0.00016438,2]
[401268503,1768086635375,-1929.70474864,0.00016438,2]
[401268504,1768086635384,-1929.70474864,0.00016438,2]
[401268505,1768086635393,-1929.70474864,0.00016438,2]
[401268506,1768086635403,-1929.70474864,0.00016438,2]
[401268507,1768086635412,-1929.70474864,0.00016438,2]
[401268508,1768086635421,-1929.70474864,0.00016438,2]
[401268509,1768086635431,-1929.70474864,0.00016438,2]
[401268510,1768086635440,-1894.61920776,0.00016438,2]
[401268511,1768086635449,-1894.61920776,0.00016438,2]
[401268512,1768086635459,-1894.61920776,0.00016438,2]
[401268513,1768086635469,-1894.61920776,0.00016438,2]
[401268514,1768086635479,-1894.61920776,0.00016438,2]
[401268515,1768086635488,-1894.61920776,0.00016438,2]
[401268516,1768086635498,-1894.61920776,0.00016438,2]
[401268517,1768086635507,-1894.61920776,0.00016438,2]
[401268518,1768086635517,-1894.61920776,0.00016438,2]
[401268519,1768086635527,-1894.61920776,0.00016438,2]
[401268520,1768086635536,-1894.61920776,0.00016438,2]
[401268521,1768086635546,-1894.61920776,0.00016438,2]
[401268522,1768086635556,-1894.61920776,0.00016438,2]
[401268523,1768086635566,-1894.61920776,0.00016438,2]
[401268524,1768086635576,-1894.61920776,0.00016438,2]
[401268525,1768086635586,-1894.61920776,0.00016438,2]
[401268526,1768086635596,-1894.61920776,0.00016438,2]
[401268527,1768086635606,-1894.61920776,0.00016438,2]
[401268528,1768086635615,-1894.61920776,0.00016438,2]
[401268529,1768086635625,-1894.61920776,0.00016438,2]
[401268530,1768086635635,-1894.61920776,0.00016438,2]
[401268531,1768086635645,-1894.6192077,0.00016438,2]
[401268532,1768086635655,-800.0,0.00016438,2]
[401268533,1768086635664,-888.0,0.00016438,2]
[401268534,1768086635674,-490.44433204,0.00016513,2]
[401268535,1768086635683,-214.81,0.00016515,2]
[401268536,1768086635693,-1249.53,0.00016711,2]
[401268537,1768086635703,-2000.0,0.00016816,2]
[401268538,1768086635712,-1520.5636209,0.00016816,2]
[401268539,1768086635722,-500.0,0.00016816,2]
[401268540,1768086635731,-2000.0,0.00016816,2]
[401268541,1768086635741,-2000.0,0.00016816,2]
[401268542,1768086635750,-2000.0,0.00016816,2]
[401268543,1768086635759,-216.2,0.00016829,2]
[401268544,1768086635768,-3148.91,0.00016856,2]
[401268545,1768086635778,-433.0,0.00016886,2]
[401268546,1768086635788,-1249.53,0.00016985,2]
[401268547,1768086635798,-9475.6,0.00016986,2]
[401268548,1768086635808,-162.0,0.0001704,2]
[401268549,1768086635818,-150.0,0.0001711,2]
[401268550,1768086635829,-213.0,0.0001711,2]
[401268551,1768086635839,-302.46,0.0001711,2]
[401268552,1768086635848,-351.15046331,0.0001711,2]
[401268553,1768086635858,-214.81,0.00017112,2]
[401268554,1768086635868,-1189.9,0.00017191,2]
[401268555,1768086635878,-1249.53,0.00017259,2]
[401268556,1768086635888,-168.0044133,0.0001726,2]
[401268557,1768086635898,-17355.26409565,0.00017353,2]
[401268558,1768086635909,-834.0,0.0001736,2]
[401268559,1768086635919,-2500.0,0.00017364,2]
[401268560,1768086635930,-2500.0,0.00017364,2]
[401268561,1768086635940,-2500.0,0.00017364,2]
[401268562,1768086635950,-2351.0,0.00017376,2]
[401268563,1768086635960,-3148.91,0.00017442,2]
[401268564,1768086635969,-22419.16608996,0.00017469,2]
[401268565,1768086635981,-231.82683934,0.00017511,2]
[401268566,1768086635992,-1249.53,0.00017533,2]
[401268567,1768086636002,-1042.88649814,0.00017534,2]
[401268568,1768086636011,-661.23,0.00017614,2]
[401268569,1768086636021,-214.81,0.00017709,2]
[401268570,1768086636030,-1249.53,0.00017807,2]
[401268571,1768086636041,-1189.9,0.00017883,2]
[401268572,1768086636050,-1000.0,0.00017901,2]
[401268573,1768086636060,-2693.73266833,0.00017912,2]
[401268574,1768086636069,-946.20279251,0.00017912,2]
[401268575,1768086636079,-699.80942896,0.00017912,2]
[401268576,1768086636088,-1000.0,0.0001797,2]
[401268577,1768086636097,-1000.0,0.0001797,2]
[401268578,1768086636107,-1000.0,0.0001797,2]
[401268579,1768086636116,-500.0,0.0001797,2]
[401268580,1768086636126,-1196.54474908,0.0001797,2]
[401268581,1768086636135,-500.0,0.0001797,2]
[401268582,1768086636144,-586.11399601,0.0001797,2]
[401268583,1768086636155,-1000.0,0.0001797,2]
[401268584,1768086636164,-500.0,0.0001797,2]
[401268585,1768086636172,-162.53016646,0.00017973,2]
[401268586,1768086636183,-500.0,0.00017973,2]
[401268587,1768086636192,-501.02575149,0.00017973,2]
[401268588,1768086636201,-500.0,0.00017973,2]
[401268589,1768086636211,-500.0,0.00017973,2]
[401268590,1768086636220,-504.45710441,0.00017973,2]
[401268591,1768086636229,-500.0,0.00017973,2]
[401268592,1768086636239,-500.0,0.00017973,2]
[401268593,1768086636248,-426.73386812,0.00017973,2]
[401268594,1768086636259,-159.95078163,0.00017973,2]
[401268595,1768086636268,-274.34330531,0.00017973,2]
[401268596,1768086636278,-501.05253604,0.00017973,2]
[401268597,1768086636289,-478.51992038,0.00017973,2]
[401268598,1768086636299,-500.0,0.00017973,2]
[401268599,1768086636309,-500.53918794,0.00017973,2]
[401268600,1768086636319,-500.0,0.00017973,2]
[401268601,1768086636329,-500.0,0.00017973,2]
[401268602,1768086636339,-150.54666433,0.00017973,2]
[401268603,1768086636348,-500.42118513,0.00017973,2]
[401268604,1768086636357,-500.57251054,0.00017973,2]
[401268605,1768086636367,-500.0,0.00017973,2]
[401268606,1768086636377,-500.0,0.00017973,2]
[401268607,1768086636386,-500.3651402,0.00017973,2]
[401268608,1768086636396,-160.94748089,0.00017973,2]
[401268609,1768086636405,-568.48476984,0.00017973,2]
[401268610,1768086636415,-501.18870733,0.00017973,2]
[401268611,1768086636424,-500.0,0.00017973,2]
[401268612,1768086636434,-385.16009683,0.00017973,2]
[401268613,1768086636443,-500.0,0.00017973,2]
[401268614,1768086636454,-500.0,0.00017973,2]
[401268615,1768086636463,-501.25774686,0.00017973,2]
[401268616,1768086636473,-500.0,0.00017973,2]
[401268617,1768086636482,-500.62899828,0.00017973,2]
[401268618,1768086636491,-500.0,0.00017973,2]
[401268619,1768086636501,-160.89492407,0.00017973,2]
[401268620,1768086636510,-500.0,0.00017973,2]
[401268621,1768086636519,-1649.59,0.00018,7]
[401268622,1768086636529,-500.0,0.00018026,2]
[401268623,1768086636538,-3148.91,0.00018028,2]
[401268624,1768086636548,-1249.53,0.00018081,2]
[401268625,1768086636558,-157.72323008,0.00018135,2]
[401268626,1768086636569,-500.0,0.00018135,2]
[401268627,1768086636578,-736.0,0.00018182,2]
[401268628,1768086636587,-214.81,0.00018306,2]
[401268629,1768086636596,-162.0,0.0001832,2]
[401268630,1768086636605,-834.0,0.0001832,2]
[401268631,1768086636615,-1249.55365911,0.00018355,2]
[401268632,1768086636624,-1189.9,0.00018574,2]
[401268633,1768086636637,-3148.91,0.00018613,2]
[401268634,1768086636646,-162.0,0.0001864,2]
[401268635,1768086636655,-162.0,0.0001872,2]
[401268636,1768086636665,-834.0,0.0001872,2]
[401268637,1768086636674,-162.0,0.0001872,2]
[401268638,1768086636684,-162.0,0.0001872,2]
[401268639,1768086636694,-788.02746761,0.00018722,2]
[401268640,1768086636703,-17355.26409565,0.00018748,2]
[401268641,1768086636713,-500.0,0.00018839,2]
[401268642,1768086636722,-22419.16608996,0.00018873,2]
[401268643,1768086636731,-500.0,0.0001894,2]
[401268644,1768086636741,-1000.0,0.00018961,2]
[401268645,1768086636750,-2481.3,0.00018986,2]
[401268646,1768086636759,-500.0,0.00019013,2]
[401268647,1768086636769,-162.0,0.0001904,2]
[401268648,1768086636778,-162.0,0.0001904,2]
[401268649,1768086636787,-162.0,0.0001904,2]
[401268650,1768086636799,-834.0,0.0001904,2]
[401268651,1768086636808,-20452.74518303,0.00019102,2]
[401268652,1768086636819,-2929.0,0.00019114,2]
[401268653,1768086636828,-3148.91,0.00019199,2]
[401268654,1768086636838,-500.0,0.00019261,2]
[401268655,1768086636847,-1189.9,0.00019266,2]
[401268656,1768086636857,-162.0,0.0001928,2]
[401268657,1768086636868,-500.0,0.00019288,2]
[401268658,1768086636878,-731.3243139,0.00019296,2]
[401268659,1768086636887,-250.0,0.00019327,2]
[401268660,1768086636897,-9999.99,0.00019339,2]
[401268661,1768086636906,-9314.09,0.00019339,2]
[401268662,1768086636916,-576.56,0.00019339,2]
[401268663,1768086636927,-162.0,0.0001936,2]
[401268664,1768086636936,-162.0,0.0001936,2]
[401268665,1768086637156,-150.0,0.0001936,2]
[401268666,1768086637167,-500.0,0.00019366,2]
[401268667,1768086637176,-614.0,0.00019502,2]
[401268668,1768086637186,-1405.0,0.00019502,2]
[401268669,1768086637196,-1266.0,0.00019502,2]
[401268670,1768086637205,-505.0,0.00019502,2]
[401268671,1768086637214,-914.0,0.00019503,2]
[401268672,1768086637224,-1201.0,0.00019503,2]
[401268673,1768086637234,-4820.0,0.00019506,2]
[401268674,1768086637243,-2437.0,0.00019506,2]
[401268675,1768086637253,-1818.24,0.00019578,2]
[401268676,1768086637262,-1252.0,0.00019579,2]
[401268677,1768086637271,-162.0,0.0001968,2]
[401268678,1768086637283,-822.0,0.0001968,2]
[401268679,1768086637293,-1000.0,0.00019691,2]
[401268680,1768086637302,-3148.91,0.00019785,2]
[401268681,1768086637315,-274.38,0.00019863,2]
[401268682,1768086637326,-500.0,0.00019956,2]
[401268683,1768086637336,-649.16,0.00019956,2]
[401268684,1768086637346,-577.6208976,0.00019956,2]
[401268685,1768086637355,-648.66,0.00019956,2]
[401268686,1768086637364,-1189.9,0.00019958,2]
[401268687,1768086637373,-1000.0,0.0001997,2]
[401268688,1768086637383,-1000.0,0.0001997,2]
[401268689,1768086637392,-500.0,0.0001997,2]
[401268690,1768086637401,-500.0,0.0001997,2]
[401268691,1768086637411,-500.0,0.0001997,2]
[401268693,1768086637421,-834.0,0.0002002,2]
[401268694,1768086637431,-3468.0,0.00020062,2]
[401268695,1768086637440,-17355.26409565,0.00020144,2]
[401268696,1768086637450,-22419.16608996,0.00020277,2]
[401268697,1768086637460,-2000.0,0.000203,2]
[401268698,1768086637469,-502.93403824,0.00020341,2]
[401268700,1768086637478,-3148.91,0.00020371,2]
[401268701,1768086637488,-834.0,0.0002038,2]
[401268703,1768086637497,-176.43590763,0.0002042,2]
[401268704,1768086637508,-2337.20378785,0.0002042,2]
[401268705,1768086637517,-4239.57537948,0.0002042,2]
[401268706,1768086637527,-3286.61912463,0.0002042,2]
[401268707,1768086637536,-834.0,0.0002048,2]
[401268708,1768086637546,-6551.0,0.00020503,2]
[401268709,1768086637555,-216.2,0.00020513,2]
[401268711,1768086637565,-300.0,0.00020548,3]
[401268713,1768086637575,-508.8481061,0.0002055,2]
[401268715,1768086637584,-500.0,0.00020624,2]
[401268716,1768086637596,-1189.9,0.0002065,2]
[401268718,1768086637604,-231.82683934,0.00020664,2]
[401268720,1768086637613,-834.0,0.000208,2]
[401268722,1768086637623,-300.0,0.00020822,3]
[401268724,1768086637632,-500.0,0.00020925,2]
[401268726,1768086637641,-3148.91,0.00020957,2]
[401268728,1768086637651,-166.66,0.00021033,2]
[401268729,1768086637660,-12498.87,0.00021068,2]
[401268730,1768086637669,-2129.0,0.00021093,2]
[401268731,1768086637679,-834.0,0.0002134,2]
[401268732,1768086637688,-1189.9,0.00021341,2]
[401268733,1768086637698,-500.0,0.0002135,2]
[401268734,1768086637708,-300.0,0.0002137,3]
[401268735,1768086637717,-500.0,0.00021381,2]
[401268736,1768086637727,-1000.0,0.00021481,2]
[401268737,1768086637736,-515.02414333,0.00021524,2]
[401268738,1768086637746,-17355.26409565,0.0002154,2]
[401268739,1768086637755,-3148.91,0.00021542,2]
[401268740,1768086637765,-177.9,0.0002167,2]
[401268741,1768086637775,-1000.0,0.0002168,2]
[401268742,1768086637784,-22419.16608996,0.00021681,2]
[401268743,1768086637795,-162.0,0.000217,2]
[401268744,1768086637805,-166.66,0.00021728,2]
[401268745,1768086637814,-216.2,0.00021826,2]